[Event "*** SCC Grand Prix: Titled Tuesday Blitz"]
[Site "Chess.com"]
[Date "2020.07.14"]
[Round "3"]
[White "omer1997"]
[Black "keepitcool9499"]
[Result "0-1"]
[WhiteElo "2360"]
[BlackElo "2559"]
[TimeControl "180+1"]
[EndTime "10:27:07 PDT"]
[Termination "keepitcool9499 won by resignation"]

1. e4 {[%clk 0:03:00.9]} 1... e6 {[%clk 0:03:00.9]} 2. d4 {[%clk 0:02:59.9]}
2... d5 {[%clk 0:02:59.1]} 3. Nd2 {[%clk 0:03:00.6]} 3... c5 {[%clk 0:02:57.7]}
4. Ngf3 {[%clk 0:03:00.5]} 4... Nc6 {[%clk 0:02:57.1]} 5. exd5 {[%clk
0:03:00.2]} 5... Qxd5 {[%clk 0:02:55.6]} 6. Bc4 {[%clk 0:02:58.2]} 6... Qd8
{[%clk 0:02:55.8]} 7. O-O {[%clk 0:02:54.1]} 7... Nf6 {[%clk 0:02:56.1]} 8. dxc5
{[%clk 0:02:50.7]} 8... Bxc5 {[%clk 0:02:53.5]} 9. Nb3 {[%clk 0:02:50.4]} 9...
Bd6 {[%clk 0:02:52.4]} 10. Bg5 {[%clk 0:02:47.8]} 10... O-O {[%clk 0:02:51.4]}
11. Bxf6 {[%clk 0:02:43.9]} 11... gxf6 {[%clk 0:02:48.5]} 12. Qd2 {[%clk
0:02:42.4]} 12... Qc7 {[%clk 0:02:37.9]} 13. Qh6 {[%clk 0:02:39.7]} 13... Ne7
{[%clk 0:02:31.7]} 14. Bd3 {[%clk 0:02:26.6]} 14... Ng6 {[%clk 0:02:27.2]} 15.
g3 {[%clk 0:02:17.8]} 15... Rd8 {[%clk 0:02:24.8]} 16. Nbd4 {[%clk 0:02:17.3]}
16... Bf8 {[%clk 0:02:22.6]} 17. Qh5 {[%clk 0:02:16.1]} 17... Bg7 {[%clk
0:02:18.8]} 18. Rad1 {[%clk 0:02:07.7]} 18... a6 {[%clk 0:02:14.5]} 19. h4
{[%clk 0:02:07.1]} 19... Rd5 {[%clk 0:01:52.6]} 20. Qg4 {[%clk 0:01:44.5]} 20...
f5 {[%clk 0:01:49.2]} 21. Qg5 {[%clk 0:01:22.8]} 21... Bxd4 {[%clk 0:01:30.8]}
22. h5 {[%clk 0:00:52.1]} 22... f6 {[%clk 0:01:16.1]} 23. Qh6 {[%clk 0:00:48.6]}
23... Qxg3+ {[%clk 0:01:09.8]} 24. Kh1 {[%clk 0:00:48.6]} 24... Qxf3+ {[%clk
0:01:08.1]} 25. Kg1 {[%clk 0:00:49.1]} 25... f4 {[%clk 0:01:01.6]} 0-1

[Event "*** SCC Grand Prix: Titled Tuesday Blitz"]
[Site "Chess.com"]
[Date "2020.07.14"]
[Round "3"]
[White "Matibar"]
[Black "bratkoo"]
[Result "1-0"]
[WhiteElo "2677"]
[BlackElo "2463"]
[TimeControl "180+1"]
[EndTime "10:27:08 PDT"]
[Termination "Matibar won by resignation"]

1. d4 {[%clk 0:03:00.9]} 1... e6 {[%clk 0:03:00]} 2. Bf4 {[%clk 0:02:59.6]} 2...
d5 {[%clk 0:03:00.1]} 3. e3 {[%clk 0:02:58.5]} 3... Bd6 {[%clk 0:03:00.7]} 4.
Bg3 {[%clk 0:02:58]} 4... Ne7 {[%clk 0:03:01.3]} 5. Bd3 {[%clk 0:02:57.1]} 5...
Nf5 {[%clk 0:03:01.6]} 6. Bxf5 {[%clk 0:02:49.9]} 6... exf5 {[%clk 0:03:02.5]}
7. Ne2 {[%clk 0:02:50]} 7... O-O {[%clk 0:03:01.9]} 8. Nd2 {[%clk 0:02:49.6]}
8... Re8 {[%clk 0:02:58.2]} 9. O-O {[%clk 0:02:42.1]} 9... Be6 {[%clk
0:02:56.3]} 10. Rc1 {[%clk 0:02:38.6]} 10... c6 {[%clk 0:02:37.9]} 11. c4 {[%clk
0:02:34]} 11... h6 {[%clk 0:02:37.4]} 12. Qb3 {[%clk 0:02:21.4]} 12... Re7
{[%clk 0:02:33.9]} 13. Bxd6 {[%clk 0:02:17.1]} 13... Qxd6 {[%clk 0:02:33.6]} 14.
Nf4 {[%clk 0:02:18]} 14... g5 {[%clk 0:02:14.5]} 15. cxd5 {[%clk 0:01:52]} 15...
gxf4 {[%clk 0:02:03.9]} 16. dxe6 {[%clk 0:01:51.9]} 16... fxe6 {[%clk
0:02:01.9]} 17. Nc4 {[%clk 0:01:49]} 17... Qc7 {[%clk 0:01:59.1]} 18. Ne5 {[%clk
0:01:47.2]} 18... fxe3 {[%clk 0:01:57.4]} 19. fxe3 {[%clk 0:01:42.1]} 19... Nd7
{[%clk 0:01:56.7]} 20. Rxf5 {[%clk 0:01:42.1]} 20... Rf8 {[%clk 0:01:52]} 21.
Rxf8+ {[%clk 0:01:37.7]} 21... Nxf8 {[%clk 0:01:47.5]} 22. Rf1 {[%clk
0:01:37.9]} 22... Nd7 {[%clk 0:01:39.6]} 23. Ng6 {[%clk 0:01:28.2]} 23... Re8
{[%clk 0:01:39.7]} 24. e4 {[%clk 0:01:21.7]} 24... Kh7 {[%clk 0:01:36.8]} 25. e5
{[%clk 0:01:14.2]} 25... Nb6 {[%clk 0:01:17.6]} 26. Qd3 {[%clk 0:01:05.7]} 26...
Kg7 {[%clk 0:01:12.8]} 27. Nh4 {[%clk 0:01:05.4]} 27... Qd8 {[%clk 0:00:49.2]}
28. Qg6+ {[%clk 0:01:04.1]} 28... Kh8 {[%clk 0:00:48.6]} 29. Qxh6+ {[%clk
0:01:04.3]} 29... Kg8 {[%clk 0:00:48.5]} 30. Qg6+ {[%clk 0:01:03.8]} 30... Kh8
{[%clk 0:00:48.5]} 31. Qh5+ {[%clk 0:01:04.4]} 31... Kg8 {[%clk 0:00:48.6]} 32.
Qg4+ {[%clk 0:01:05]} 32... Kh8 {[%clk 0:00:48.3]} 33. Rf7 {[%clk 0:01:04.8]}
1-0

[Event "*** SCC Grand Prix: Titled Tuesday Blitz"]
[Site "Chess.com"]
[Date "2020.07.14"]
[Round "3"]
[White "crazychessbr"]
[Black "The_Machine04"]
[Result "1-0"]
[WhiteElo "2075"]
[BlackElo "2286"]
[TimeControl "180+1"]
[EndTime "10:27:09 PDT"]
[Termination "crazychessbr won by checkmate"]

1. e4 {[%clk 0:03:00.9]} 1... d6 {[%clk 0:02:59]} 2. d3 {[%clk 0:02:59.7]} 2...
Nf6 {[%clk 0:02:59.2]} 3. g3 {[%clk 0:03:00.1]} 3... e5 {[%clk 0:02:59]} 4. Bg2
{[%clk 0:03:00.7]} 4... Be7 {[%clk 0:02:58.3]} 5. Nf3 {[%clk 0:03:01.3]} 5...
Nc6 {[%clk 0:02:57]} 6. O-O {[%clk 0:03:02]} 6... h5 {[%clk 0:02:49.6]} 7. c3
{[%clk 0:03:01.1]} 7... Bd7 {[%clk 0:02:39]} 8. Nbd2 {[%clk 0:02:56.8]} 8... Qc8
{[%clk 0:02:38.4]} 9. Ng5 {[%clk 0:02:49.7]} 9... h4 {[%clk 0:02:34.1]} 10. Qb3
{[%clk 0:02:46.7]} 10... Rf8 {[%clk 0:02:21.7]} 11. f4 {[%clk 0:02:32.6]} 11...
hxg3 {[%clk 0:02:18.4]} 12. hxg3 {[%clk 0:02:32.2]} 12... Ng4 {[%clk 0:02:12.7]}
13. Ndf3 {[%clk 0:02:12]} 13... Nd8 {[%clk 0:01:52]} 14. fxe5 {[%clk 0:02:04.8]}
14... dxe5 {[%clk 0:01:40.8]} 15. d4 {[%clk 0:02:01.7]} 15... c6 {[%clk
0:01:28.2]} 16. Nxe5 {[%clk 0:01:50.9]} 16... Nxe5 {[%clk 0:01:23.9]} 17. dxe5
{[%clk 0:01:49.1]} 17... Ne6 {[%clk 0:01:17.1]} 18. Nh7 {[%clk 0:01:13.8]} 18...
Bc5+ {[%clk 0:01:12.6]} 19. Rf2 {[%clk 0:00:45.6]} 19... Rh8 {[%clk 0:01:09.5]}
20. Ng5 {[%clk 0:00:42.7]} 20... Nxg5 {[%clk 0:01:08]} 21. Bxg5 {[%clk
0:00:41.1]} 21... Bh3 {[%clk 0:00:40]} 22. Qxf7# {[%clk 0:00:38.9]} 1-0

[Event "*** SCC Grand Prix: Titled Tuesday Blitz"]
[Site "Chess.com"]
[Date "2020.07.14"]
[Round "3"]
[White "ARTHURMOTIVATOR"]
[Black "heyiampotato"]
[Result "0-1"]
[WhiteElo "2340"]
[BlackElo "2534"]
[TimeControl "180+1"]
[EndTime "10:27:11 PDT"]
[Termination "heyiampotato won by resignation"]

1. e4 {[%clk 0:03:00.9]} 1... c5 {[%clk 0:02:57.3]} 2. b3 {[%clk 0:02:58.6]}
2... e6 {[%clk 0:02:56.5]} 3. Bb2 {[%clk 0:02:57.8]} 3... a6 {[%clk 0:02:56.3]}
4. Nf3 {[%clk 0:02:55]} 4... Nc6 {[%clk 0:02:56.1]} 5. d4 {[%clk 0:02:53.8]}
5... cxd4 {[%clk 0:02:55]} 6. Nxd4 {[%clk 0:02:53.8]} 6... Qf6 {[%clk
0:02:55.6]} 7. Be2 {[%clk 0:02:39.7]} 7... Bb4+ {[%clk 0:02:23.6]} 8. Kf1 {[%clk
0:02:12.6]} 8... Bc5 {[%clk 0:02:10.6]} 9. c3 {[%clk 0:02:05.1]} 9... e5 {[%clk
0:02:06.1]} 10. Nf3 {[%clk 0:01:55.3]} 10... d6 {[%clk 0:01:49.9]} 11. Nbd2
{[%clk 0:01:52.7]} 11... Nge7 {[%clk 0:01:46.9]} 12. h3 {[%clk 0:01:37.1]} 12...
O-O {[%clk 0:01:36.4]} 13. Nc4 {[%clk 0:01:26.3]} 13... b5 {[%clk 0:01:31.3]}
14. Ne3 {[%clk 0:01:22.1]} 14... Bxe3 {[%clk 0:01:28.5]} 15. fxe3 {[%clk
0:01:22.1]} 15... Qh6 {[%clk 0:01:29.2]} 16. Qd2 {[%clk 0:01:18.2]} 16... f5
{[%clk 0:01:23.8]} 17. exf5 {[%clk 0:01:15.5]} 17... Nxf5 {[%clk 0:01:23.9]} 18.
Qd5+ {[%clk 0:01:09.1]} 18... Be6 {[%clk 0:01:22.3]} 19. Qxc6 {[%clk 0:01:08.7]}
19... Qxe3 {[%clk 0:01:09.3]} 20. Ke1 {[%clk 0:00:24.5]} 20... Ng3 {[%clk
0:01:04.2]} 0-1

[Event "*** SCC Grand Prix: Titled Tuesday Blitz"]
[Site "Chess.com"]
[Date "2020.07.14"]
[Round "3"]
[White "Euge_chess"]
[Black "barriochess"]
[Result "0-1"]
[WhiteElo "2000"]
[BlackElo "2289"]
[TimeControl "180+1"]
[EndTime "10:27:11 PDT"]
[Termination "barriochess won on time"]

1. e4 {[%clk 0:03:00.9]} 1... d6 {[%clk 0:02:59.8]} 2. d4 {[%clk 0:03:00.3]}
2... Nf6 {[%clk 0:02:59.9]} 3. Nc3 {[%clk 0:02:59.6]} 3... g6 {[%clk 0:03:00.2]}
4. Nf3 {[%clk 0:02:58.5]} 4... Bg7 {[%clk 0:02:57.5]} 5. Bd3 {[%clk 0:02:52.2]}
5... O-O {[%clk 0:02:56.8]} 6. O-O {[%clk 0:02:51.9]} 6... Bg4 {[%clk
0:02:55.6]} 7. h3 {[%clk 0:02:49.7]} 7... Bxf3 {[%clk 0:02:54.9]} 8. Qxf3 {[%clk
0:02:47.6]} 8... Nc6 {[%clk 0:02:55.8]} 9. d5 {[%clk 0:02:40.1]} 9... Nd4 {[%clk
0:02:51.5]} 10. Qd1 {[%clk 0:02:38.2]} 10... c5 {[%clk 0:02:47]} 11. dxc6 {[%clk
0:02:33]} 11... Nxc6 {[%clk 0:02:45.6]} 12. f4 {[%clk 0:02:30.6]} 12... a6
{[%clk 0:02:44.7]} 13. Kh2 {[%clk 0:02:29.1]} 13... Rc8 {[%clk 0:02:41.4]} 14.
Nd5 {[%clk 0:02:21]} 14... Nxd5 {[%clk 0:02:37.9]} 15. exd5 {[%clk 0:02:19.3]}
15... Nb4 {[%clk 0:02:38.2]} 16. Be4 {[%clk 0:02:16.2]} 16... f5 {[%clk
0:02:37.7]} 17. Bd3 {[%clk 0:02:03.3]} 17... Nxd3 {[%clk 0:02:32.3]} 18. Qxd3
{[%clk 0:02:02.1]} 18... Qc7 {[%clk 0:02:32.4]} 19. c3 {[%clk 0:02:00.8]} 19...
Qc4 {[%clk 0:02:32.7]} 20. Qxc4 {[%clk 0:01:52.6]} 20... Rxc4 {[%clk 0:02:33.6]}
21. Be3 {[%clk 0:01:52]} 21... b5 {[%clk 0:02:29.1]} 22. a3 {[%clk 0:01:43.8]}
22... a5 {[%clk 0:02:26.1]} 23. Rac1 {[%clk 0:01:14.3]} 23... Rfc8 {[%clk
0:02:22.8]} 24. g4 {[%clk 0:01:03.7]} 24... Kf7 {[%clk 0:02:17.1]} 25. gxf5
{[%clk 0:01:02.5]} 25... gxf5 {[%clk 0:02:18]} 26. Rg1 {[%clk 0:00:57.7]} 26...
Bf6 {[%clk 0:02:15.9]} 27. Rg2 {[%clk 0:00:51.7]} 27... b4 {[%clk 0:02:15.4]}
28. axb4 {[%clk 0:00:43.6]} 28... axb4 {[%clk 0:02:16.3]} 29. Rgc2 {[%clk
0:00:23.6]} 29... bxc3 {[%clk 0:02:14.7]} 30. bxc3 {[%clk 0:00:23.4]} 30... Rxc3
{[%clk 0:02:15.6]} 31. Rxc3 {[%clk 0:00:22.3]} 31... Rxc3 {[%clk 0:02:16.5]} 32.
Rxc3 {[%clk 0:00:21]} 32... Bxc3 {[%clk 0:02:17.4]} 33. Kg3 {[%clk 0:00:20.6]}
33... Bf6 {[%clk 0:02:16]} 34. h4 {[%clk 0:00:19.4]} 34... h5 {[%clk 0:02:13.2]}
35. Bb6 {[%clk 0:00:18.3]} 35... e6 {[%clk 0:02:12.9]} 36. Bc7 {[%clk
0:00:11.6]} 36... exd5 {[%clk 0:02:12.9]} 37. Bxd6 {[%clk 0:00:11.1]} 37... Ke6
{[%clk 0:02:13.8]} 38. Bb4 {[%clk 0:00:10.1]} 38... d4 {[%clk 0:02:14.4]} 39.
Bd2 {[%clk 0:00:09.7]} 39... Kd5 {[%clk 0:02:14.7]} 40. Be1 {[%clk 0:00:09.3]}
40... Ke4 {[%clk 0:02:14.6]} 41. Bd2 {[%clk 0:00:04.9]} 41... d3 {[%clk
0:02:15.5]} 42. Bc1 {[%clk 0:00:04]} 42... Bc3 {[%clk 0:02:14.8]} 43. Kf2 {[%clk
0:00:03.7]} 43... d2 {[%clk 0:02:14.9]} 0-1

[Event "*** SCC Grand Prix: Titled Tuesday Blitz"]
[Site "Chess.com"]
[Date "2020.07.14"]
[Round "3"]
[White "swimmerchess"]
[Black "SamuelGhimpu2003"]
[Result "1-0"]
[WhiteElo "2829"]
[BlackElo "2600"]
[TimeControl "180+1"]
[EndTime "10:27:12 PDT"]
[Termination "swimmerchess won by resignation"]

1. e4 {[%clk 0:03:00.9]} 1... e6 {[%clk 0:02:59.9]} 2. d4 {[%clk 0:03:00.6]}
2... d5 {[%clk 0:03:00.8]} 3. Nc3 {[%clk 0:03:00.9]} 3... Nf6 {[%clk 0:03:00.3]}
4. e5 {[%clk 0:03:01]} 4... Nfd7 {[%clk 0:03:00.7]} 5. f4 {[%clk 0:03:01.1]}
5... c5 {[%clk 0:03:01.5]} 6. Nf3 {[%clk 0:03:01.5]} 6... Nc6 {[%clk 0:03:01.8]}
7. Be3 {[%clk 0:03:02]} 7... Be7 {[%clk 0:03:02.3]} 8. Qd2 {[%clk 0:03:01.8]}
8... O-O {[%clk 0:03:03.2]} 9. dxc5 {[%clk 0:03:01.9]} 9... Qa5 {[%clk
0:03:03.1]} 10. Bd3 {[%clk 0:02:51.3]} 10... Bxc5 {[%clk 0:03:01.6]} 11. Bxc5
{[%clk 0:02:48.2]} 11... Nxc5 {[%clk 0:03:02.5]} 12. Ne2 {[%clk 0:02:28.8]}
12... Qxd2+ {[%clk 0:02:54]} 13. Kxd2 {[%clk 0:02:29.7]} 13... Bd7 {[%clk
0:02:54]} 14. Ned4 {[%clk 0:02:29.3]} 14... Rfc8 {[%clk 0:02:51.9]} 15. g4
{[%clk 0:02:23.4]} 15... Rab8 {[%clk 0:02:49.6]} 16. h4 {[%clk 0:02:21.5]} 16...
Na4 {[%clk 0:02:38.7]} 17. b3 {[%clk 0:01:47]} 17... Nc5 {[%clk 0:02:37.5]} 18.
h5 {[%clk 0:01:46.5]} 18... Nxd4 {[%clk 0:02:17.2]} 19. Nxd4 {[%clk 0:01:44.9]}
19... a5 {[%clk 0:02:17.3]} 20. a3 {[%clk 0:01:33]} 20... Rc7 {[%clk 0:02:01.3]}
21. b4 {[%clk 0:01:28.7]} 21... Na4 {[%clk 0:02:01.5]} 22. f5 {[%clk 0:01:10]}
22... f6 {[%clk 0:01:28.8]} 23. Rhe1 {[%clk 0:00:45.1]} 23... exf5 {[%clk
0:01:27.2]} 24. gxf5 {[%clk 0:00:45.3]} 24... Re8 {[%clk 0:01:13.6]} 25. e6
{[%clk 0:00:44.7]} 1-0

[Event "*** SCC Grand Prix: Titled Tuesday Blitz"]
[Site "Chess.com"]
[Date "2020.07.14"]
[Round "3"]
[White "harkerchess"]
[Black "jonychess03"]
[Result "1/2-1/2"]
[WhiteElo "2091"]
[BlackElo "2300"]
[TimeControl "180+1"]
[EndTime "10:27:12 PDT"]
[Termination "Game drawn by stalemate"]

1. d4 {[%clk 0:03:00.9]} 1... Nf6 {[%clk 0:02:59.8]} 2. Bg5 {[%clk 0:02:58.5]}
2... Ne4 {[%clk 0:02:57.2]} 3. Bf4 {[%clk 0:02:58.4]} 3... d5 {[%clk 0:02:57.5]}
4. Nd2 {[%clk 0:02:57.7]} 4... Nd7 {[%clk 0:02:54.4]} 5. Nxe4 {[%clk 0:02:55.8]}
5... dxe4 {[%clk 0:02:55.3]} 6. e3 {[%clk 0:02:56.2]} 6... Nf6 {[%clk
0:02:55.3]} 7. Qd2 {[%clk 0:02:55.8]} 7... Bf5 {[%clk 0:02:45.5]} 8. O-O-O
{[%clk 0:02:54.9]} 8... e6 {[%clk 0:02:45.4]} 9. f3 {[%clk 0:02:54.6]} 9... exf3
{[%clk 0:02:43.3]} 10. gxf3 {[%clk 0:02:55.5]} 10... Bd6 {[%clk 0:02:42.8]} 11.
e4 {[%clk 0:02:50.5]} 11... Bxf4 {[%clk 0:02:42]} 12. Qxf4 {[%clk 0:02:51.4]}
12... Bg6 {[%clk 0:02:42.6]} 13. Bc4 {[%clk 0:02:38.8]} 13... Qd7 {[%clk
0:02:42]} 14. d5 {[%clk 0:02:37.6]} 14... exd5 {[%clk 0:02:41]} 15. exd5 {[%clk
0:02:35.5]} 15... O-O-O {[%clk 0:02:37.3]} 16. Ne2 {[%clk 0:02:32.9]} 16... Qf5
{[%clk 0:02:37.3]} 17. Qxf5+ {[%clk 0:02:30.4]} 17... Bxf5 {[%clk 0:02:38.2]}
18. Ng3 {[%clk 0:02:29.9]} 18... Bg6 {[%clk 0:02:35.2]} 19. Rhe1 {[%clk
0:02:29.8]} 19... Rhe8 {[%clk 0:02:30.9]} 20. Rxe8 {[%clk 0:02:24.9]} 20... Rxe8
{[%clk 0:02:31.8]} 21. Kd2 {[%clk 0:02:24.9]} 21... Rd8 {[%clk 0:02:26.7]} 22.
Ke3 {[%clk 0:02:23]} 22... Bxc2 {[%clk 0:02:25]} 23. Rd2 {[%clk 0:02:21.9]}
23... Bg6 {[%clk 0:02:18.6]} 24. Ne4 {[%clk 0:02:20.8]} 24... Nxe4 {[%clk
0:02:17.7]} 25. fxe4 {[%clk 0:02:21.7]} 25... f6 {[%clk 0:02:11.3]} 26. Kf4
{[%clk 0:02:19.1]} 26... Re8 {[%clk 0:02:08.5]} 27. Re2 {[%clk 0:02:09.5]} 27...
Bf7 {[%clk 0:02:05.1]} 28. Kf5 {[%clk 0:02:06.8]} 28... c6 {[%clk 0:02:01.4]}
29. Rg2 {[%clk 0:01:58.9]} 29... Bg6+ {[%clk 0:01:52.6]} 30. Rxg6 {[%clk
0:01:57.8]} 30... hxg6+ {[%clk 0:01:52.2]} 31. Kxg6 {[%clk 0:01:58.7]} 31...
Rxe4 {[%clk 0:01:49.2]} 32. Bb3 {[%clk 0:01:58.3]} 32... cxd5 {[%clk 0:01:43.5]}
33. Bxd5 {[%clk 0:01:57]} 33... Rg4+ {[%clk 0:01:39.7]} 34. Kf7 {[%clk
0:01:52.4]} 34... Rg1 {[%clk 0:01:37.3]} 35. h4 {[%clk 0:01:49.4]} 35... Kc7
{[%clk 0:01:37.3]} 36. h5 {[%clk 0:01:49]} 36... b6 {[%clk 0:01:37.4]} 37. Be4
{[%clk 0:01:46.4]} 37... Kd6 {[%clk 0:01:37.2]} 38. Bg6 {[%clk 0:01:45.9]} 38...
Ke5 {[%clk 0:01:36.4]} 39. Kxg7 {[%clk 0:01:46]} 39... f5 {[%clk 0:01:31.4]} 40.
h6 {[%clk 0:01:46.3]} 40... f4 {[%clk 0:01:29.7]} 41. h7 {[%clk 0:01:46.6]}
41... Rh1 {[%clk 0:01:28.5]} 42. h8=Q {[%clk 0:01:46.8]} 42... Rxh8 {[%clk
0:01:28.6]} 43. Kxh8 {[%clk 0:01:47.7]} 43... f3 {[%clk 0:01:29.3]} 44. Bd3
{[%clk 0:01:47.6]} 44... Kd4 {[%clk 0:01:28.9]} 45. Ba6 {[%clk 0:01:47.5]} 45...
Kc5 {[%clk 0:01:25.1]} 46. Bf1 {[%clk 0:01:43.8]} 46... Kd4 {[%clk 0:01:25.3]}
47. Kg7 {[%clk 0:01:42.2]} 47... Ke3 {[%clk 0:01:25.5]} 48. Kf6 {[%clk 0:01:42]}
48... Kd2 {[%clk 0:01:26]} 49. Bc4 {[%clk 0:01:41.3]} 49... Kc2 {[%clk
0:01:25.7]} 50. Ke5 {[%clk 0:01:37.6]} 50... Kxb2 {[%clk 0:01:25.4]} 51. Ke4
{[%clk 0:01:32.8]} 51... f2 {[%clk 0:01:25.3]} 52. Ke3 {[%clk 0:01:32.9]} 52...
f1=Q {[%clk 0:01:25.6]} 53. Bxf1 {[%clk 0:01:32]} 53... Kxa2 {[%clk 0:01:26.1]}
54. Kd4 {[%clk 0:01:32.1]} 54... Kb3 {[%clk 0:01:24.5]} 55. Bc4+ {[%clk
0:01:28.2]} 55... Kb4 {[%clk 0:01:24.1]} 56. Bg8 {[%clk 0:01:28.2]} 56... a5
{[%clk 0:01:23.3]} 57. Kd3 {[%clk 0:01:28.1]} 57... Ka3 {[%clk 0:01:23.4]} 58.
Kc2 {[%clk 0:01:28.3]} 58... b5 {[%clk 0:01:23.8]} 59. Kb1 {[%clk 0:01:28.4]}
59... b4 {[%clk 0:01:24.3]} 60. Be6 {[%clk 0:01:28]} 60... b3 {[%clk 0:01:23.5]}
61. Bxb3 {[%clk 0:01:27.1]} 61... Kxb3 {[%clk 0:01:23.1]} 62. Ka1 {[%clk
0:01:27.7]} 62... a4 {[%clk 0:01:23.5]} 63. Kb1 {[%clk 0:01:28.6]} 63... a3
{[%clk 0:01:24.2]} 64. Ka1 {[%clk 0:01:29.5]} 64... a2 {[%clk 0:01:25.1]}
1/2-1/2

[Event "*** SCC Grand Prix: Titled Tuesday Blitz"]
[Site "Chess.com"]
[Date "2020.07.14"]
[Round "3"]
[White "PowerThinking2650"]
[Black "PrinceMurad09"]
[Result "0-1"]
[WhiteElo "2334"]
[BlackElo "2520"]
[TimeControl "180+1"]
[EndTime "10:27:13 PDT"]
[Termination "PrinceMurad09 won by resignation"]

1. e4 {[%clk 0:02:59]} 1... c5 {[%clk 0:03:00.1]} 2. Nf3 {[%clk 0:02:57.9]} 2...
d6 {[%clk 0:03:00.6]} 3. d4 {[%clk 0:02:57.2]} 3... cxd4 {[%clk 0:03:01]} 4.
Nxd4 {[%clk 0:02:56]} 4... Nf6 {[%clk 0:03:01.4]} 5. Nc3 {[%clk 0:02:56.4]} 5...
g6 {[%clk 0:03:01.7]} 6. Be3 {[%clk 0:02:50.8]} 6... Bg7 {[%clk 0:03:02.2]} 7.
f3 {[%clk 0:02:50.9]} 7... Nc6 {[%clk 0:03:02.3]} 8. Qd2 {[%clk 0:02:50.9]} 8...
O-O {[%clk 0:03:02.7]} 9. O-O-O {[%clk 0:02:50]} 9... d5 {[%clk 0:03:03.2]} 10.
Kb1 {[%clk 0:02:47.5]} 10... Rb8 {[%clk 0:03:01.3]} 11. h4 {[%clk 0:02:41.9]}
11... e6 {[%clk 0:02:33]} 12. h5 {[%clk 0:02:28.5]} 12... Nxh5 {[%clk
0:02:30.8]} 13. g4 {[%clk 0:02:25.2]} 13... Ng3 {[%clk 0:02:30.4]} 14. Rh3
{[%clk 0:02:23.6]} 14... Nxd4 {[%clk 0:02:30.3]} 15. Bxd4 {[%clk 0:02:20.8]}
15... Nxf1 {[%clk 0:02:27.3]} 16. Rxf1 {[%clk 0:02:14.9]} 16... dxe4 {[%clk
0:02:26.6]} 17. Qh2 {[%clk 0:00:31.3]} 17... Qxd4 {[%clk 0:02:06.1]} 18. Rxh7
{[%clk 0:00:27.1]} 18... exf3 {[%clk 0:01:52.6]} 19. Rh1 {[%clk 0:00:22.6]}
19... Rd8 {[%clk 0:01:44.1]} 20. Qxb8 {[%clk 0:00:18.5]} 20... f2 {[%clk
0:01:41.9]} 21. Qh2 {[%clk 0:00:12.7]} 21... b5 {[%clk 0:01:29.2]} 22. a3 {[%clk
0:00:12.2]} 22... Bb7 {[%clk 0:01:28.2]} 23. Rh8+ {[%clk 0:00:10.3]} 23... Bxh8
{[%clk 0:01:27.9]} 24. Qh7+ {[%clk 0:00:10]} 24... Kf8 {[%clk 0:01:28.1]} 25.
Qxh8+ {[%clk 0:00:10.1]} 25... Qxh8 {[%clk 0:01:28.1]} 26. Rxh8+ {[%clk
0:00:09.2]} 26... Ke7 {[%clk 0:01:28.6]} 27. Rh1 {[%clk 0:00:08]} 27... Bxh1
{[%clk 0:01:27.9]} 0-1

[Event "*** SCC Grand Prix: Titled Tuesday Blitz"]
[Site "Chess.com"]
[Date "2020.07.14"]
[Round "3"]
[White "Antipov_Mikhail_Al"]
[Black "DortmundCity"]
[Result "0-1"]
[WhiteElo "2846"]
[BlackElo "2631"]
[TimeControl "180+1"]
[EndTime "10:27:18 PDT"]
[Termination "DortmundCity won by resignation"]

1. e4 {[%clk 0:03:00.9]} 1... c5 {[%clk 0:02:52.3]} 2. Nf3 {[%clk 0:02:59.8]}
2... Nc6 {[%clk 0:02:51.4]} 3. Bb5 {[%clk 0:02:58.5]} 3... Nd4 {[%clk
0:02:49.1]} 4. Nxd4 {[%clk 0:02:57.6]} 4... cxd4 {[%clk 0:02:49]} 5. O-O {[%clk
0:02:55.8]} 5... a6 {[%clk 0:02:45.4]} 6. Ba4 {[%clk 0:02:54.8]} 6... g6 {[%clk
0:02:44.6]} 7. d3 {[%clk 0:02:45]} 7... Bg7 {[%clk 0:02:40.7]} 8. Nd2 {[%clk
0:02:44.9]} 8... b5 {[%clk 0:02:35]} 9. Bb3 {[%clk 0:02:44.6]} 9... e6 {[%clk
0:02:35.9]} 10. f4 {[%clk 0:02:44.4]} 10... Ne7 {[%clk 0:02:32.8]} 11. Nf3
{[%clk 0:02:43.7]} 11... Bb7 {[%clk 0:02:31.4]} 12. Bd2 {[%clk 0:02:42.4]} 12...
O-O {[%clk 0:02:25.2]} 13. a4 {[%clk 0:02:39.6]} 13... Qc7 {[%clk 0:02:21.9]}
14. Qe1 {[%clk 0:02:30.6]} 14... f5 {[%clk 0:02:16.2]} 15. e5 {[%clk 0:02:26.7]}
15... Bxf3 {[%clk 0:02:09.1]} 16. Rxf3 {[%clk 0:02:27.6]} 16... Nc6 {[%clk
0:02:09.8]} 17. Bb4 {[%clk 0:01:58.2]} 17... Rfc8 {[%clk 0:02:03.6]} 18. Bd6
{[%clk 0:01:48.8]} 18... Qa5 {[%clk 0:02:03.4]} 19. Qh4 {[%clk 0:01:16.7]} 19...
Qd2 {[%clk 0:01:52.9]} 20. a5 {[%clk 0:00:43.6]} 20... Nxa5 {[%clk 0:01:48.7]}
21. Rxa5 {[%clk 0:00:06.5]} 21... Qxa5 {[%clk 0:01:43.4]} 22. Qe7 {[%clk
0:00:06.7]} 22... Qd8 {[%clk 0:01:37.4]} 23. Qxd8+ {[%clk 0:00:04.6]} 23... Rxd8
{[%clk 0:01:38.3]} 24. Rf1 {[%clk 0:00:03.2]} 24... Rdc8 {[%clk 0:01:32.7]} 25.
Ra1 {[%clk 0:00:02.3]} 25... a5 {[%clk 0:01:27.5]} 26. Rc1 {[%clk 0:00:01.5]}
26... a4 {[%clk 0:01:27.3]} 27. Ba2 {[%clk 0:00:01.2]} 27... Bf8 {[%clk
0:01:27.4]} 28. Bxf8 {[%clk 0:00:01.1]} 28... Kxf8 {[%clk 0:01:27.4]} 29. Kf2
{[%clk 0:00:02]} 0-1